Cogmind - Beta 9.6 @@@ ROGUE MODE // 2020.04.20 @ 13:42:17 Player: Relth Result: Self-destructed Performance ------------- Evolutions (3) 1500 Regions Visited (6) 1200 Robots Destroyed (38) 190 Value Destroyed (1231) 1231 Prototype IDs (3) 60 Alien Tech Used (0) 0 Bonus (300) 300 TOTAL SCORE: 4481 Bonus ------- Aligned with FarCom 300 Cogmind --------- Core Integrity 535/700 Matter 190/300 Energy 282/290 System Corruption 3% Temperature Cool (0) Movement Core (200) Ox3 Location -7/Factory Parts ------- > --- POWER (3) -------- Improved Deuterium Engine > --- PROPULSION (4) --- (None) > --- UTILITY (3) ------ Improved Heat Sink Advanced Sensor Array Advanced Signal Interpreter > --- WEAPON (3) ------- (None) > --- INVENTORY (4) ---- Light Deuterium Engine Aluminum Leg Improved Heat Sink Peak State ------------ > --- POWER ------------ Light Nuclear Core Improved Deuterium Engine > --- PROPULSION ------- Light Treads Light Treads > --- UTILITY ---------- Improved Heat Sink Advanced Sensor Array Advanced Signal Interpreter > --- WEAPON ----------- Heavy Ion Cannon Flak Gun Assault Cannon > --- INVENTORY -------- Light Deuterium Engine Improved Heat Sink [Rating: 29] Favorites ----------- Power Light Nuclear Core Engine Light Ion Engine Power Core Light Nuclear Core Propulsion Light Treads Treads Light Treads Leg Aluminum Leg Wheel Compact Wheel Flight Unit Flight Unit Utility Improved Targeting Computer Device Advanced Sensor Array Storage Small Matter Pod Processor Improved Targeting Computer Protection Improved Light Armor Plating Weapon Light Assault Rifle Energy Gun Particle Gun Energy Cannon Heavy Ion Cannon Ballistic Gun Light Assault Rifle Ballistic Cannon Assault Cannon Launcher Grenade Launcher Impact Weapon Heavy Hammer Build | -11 -10 -10 -10 -9 -8 -7 ------- Run | Scr Mat Min Exi Min Mat Fac Slots Evolved 6 | . . . . . 4 2 Power 2 | . . . . . 2 . Propulsion 2 | . . . . . 1 1 Utility 1 | . . . . . . 1 Weapon 1 | . . . . . 1 . Parts Attached 90 | 6 3 6 5 7 40 23 Power 16 | 1 . . 1 1 11 2 Engine 12 | 1 . . 1 1 8 1 Core 4 | . . . . . 3 1 Reactor . | . . . . . . . Propulsion 22 | 2 . 2 . 2 10 6 Treads 6 | . . . . . 4 2 Leg 9 | 2 . 2 . . 3 2 Wheel 2 | . . . . . . 2 Hover . | . . . . . . . Flight 5 | . . . . 2 3 . Utility 16 | 1 1 1 1 1 6 5 Device 9 | 1 . 1 . 1 2 4 Storage 3 | . 1 . 1 . 1 . Processor 3 | . . . . . 2 1 Hackware . | . . . . . . . Protection 1 | . . . . . 1 . Artifact . | . . . . . . . Weapon 36 | 2 2 3 3 3 13 10 Energy Gun 5 | . . . . . 4 1 Energy Cannon 5 | . . . 1 . . 4 Ballistic Gun 16 | 2 1 2 2 2 4 3 Ballistic Cannon 6 | . . . . . 4 2 Launcher 2 | . 1 1 . . . . Special Weapon . | . . . . . . . Impact Weapon 2 | . . . . 1 1 . Slashing Weapon . | . . . . . . . Piercing Weapon . | . . . . . . . Special Melee Weapon . | . . . . . . . Unidentified Prototypes 3 | . . . 1 . 2 . Parts Lost 13 | . . 1 . . 4 8 Power 1 | . . . . . . 1 Propulsion 3 | . . . . . . 3 Utility 2 | . . 1 . . 1 . Weapon 7 | . . . . . 3 4 Highest Loss Streak 5 | . . 1 . . 2 5 Average Slot Usage (%) 75 | . 93 95 99 87 72 66 Engine 10 | . 14 14 13 14 15 3 Core 4 | . . . . . 5 6 Treads 6 | . . . . . 10 5 Leg 10 | . 28 28 28 10 3 8 Flight 2 | . . . . 17 5 . Device 10 | . 14 16 26 10 2 14 Storage 1 | . 8 9 1 5 . . Processor 6 | . . . . . 8 7 Protection 1 | . . . . . 2 . Energy Gun 1 | . . . . . 3 . Energy Cannon 2 | . . . . . . 6 Ballistic Gun 9 | . 14 14 27 26 9 2 Ballistic Cannon 3 | . . . . . 3 6 Launcher 1 | . 12 10 . . . . Naked Turns . | . . . . . . . Heaviest Build 33 | 6 10 10 23 22 25 33 Greatest Support 60 | 20 20 20 20 20 60 40 Greatest Overweight (x) 3 | . . . 1 1 1 3 Average Overweight (x) . | . . . . . . . Largest Inventory Capacity 10 | 4 4 4 10 10 4 4 Average Capacity 4 | 4 4 4 4 6 4 4 Most Carried 5 | 1 4 4 4 5 4 4 Average Carried 2 | . 2 2 2 3 2 2 Final Capacity 10 | 4 4 4 10 4 4 4 Final Carried 4 | 1 4 . 4 4 3 3 Class Distribution -------------------- 41% | Mutant 24% | Scavenger-Mutant 17% | Skirmisher 16% | Scavenger-Skirmisher Dominant Class ---------------- Mutant | -10/Materials Mutant | -10/Mines Mutant | -10/Exiles Scavenger-Mutant | -9/Mines Scavenger-Mutant | -8/Materials Skirmisher | -7/Factory Resources | -11 -10 -10 -10 -9 -8 -7 ----------- Run | Scr Mat Min Exi Min Mat Fac Matter Collected 1567 | 256 128 86 . 75 569 453 Remotely . | . . . . . . . Salvage Created 1306 | 42 169 39 . 30 515 511 Parts 77 | 3 10 . . 4 35 25 Haulers Intercepted . | . . . . . . . Recyclers Shooed 3 | . . . . . 1 2 Parts Field Recycled . | . . . . . . . Retrieved Matter . | . . . . . . . Parts Self-Destructed . | . . . . . . . Prevented . | . . . . . . . Kills | -11 -10 -10 -10 -9 -8 -7 ------- Run | Scr Mat Min Exi Min Mat Fac Combat Hostiles Destroyed 34 | 1 2 3 . 2 17 9 Melee 3 | . . . . . 3 . Guns 24 | 1 1 3 . 2 11 6 Cannons 5 | . . . . . 2 3 AOE 2 | . 1 . . . 1 . Classes Destroyed 10 | 1 2 1 . 1 3 2 Recycler 2 | . 1 . . . . 1 Operator 1 | . 1 . . . . . Watcher 1 | . . . . . 1 . Swarmer 10 | . . . . 2 8 . Grunt 14 | 1 2 . . . 7 4 Duelist 1 | . . . . . . 1 Sentry 3 | . . . . . 1 2 Hunter 2 | . . . . . 1 1 Programmer 1 | . . . . . . 1 Assembled 3 | . . 3 . . . . Best Kill Streak 6 | 1 4 2 . 2 6 4 Combat Bots Only 6 | 1 2 2 . 2 6 4 Max Kills in Single Turn 2 | 1 2 1 . 1 2 1 Gunslinging . | . . . . . . . Exploded 1 | . 1 . . . 1 . Melee 1 | . . . . . 1 . Uniques/NPCs Destroyed . | . . . . . . . Combat | -11 -10 -10 -10 -9 -8 -7 -------- Run | Scr Mat Min Exi Min Mat Fac Damage Taken 2853 | 35 38 312 . 170 1157 1141 Core 425 | . . 59 . 43 158 165 Absorbed by Shields 45 | . . . . . . 45 Core Remaining (%) 76 | 100 . . . 59 71 . Volleys Fired 124 | 3 7 20 . 9 47 38 Largest 3 | 2 2 2 . 2 3 3 Hottest 159 | 40 50 50 . 40 132 159 Shots Fired 236 | 6 9 21 . 18 92 90 Gun 145 | 6 7 20 . 18 74 20 Cannon 88 | . . . . . 18 70 Launcher 3 | . 2 1 . . . . Special . | . . . . . . . Kinetic 168 | 6 7 20 . 18 60 57 Thermal 43 | . . . . . 17 26 Explosive 3 | . 2 1 . . . . Electromagnetic 22 | . . . . . 15 7 Robot Hit Streak 13 | 5 3 2 . 6 13 11 Robot Miss Streak 6 | . 2 3 . 6 6 4 Penetration Max . | . . . . . . . Secondary Targets 2 | . . . . . 2 . Max Gunslinging Chain 1 | . . . . . 1 . Shots Hit Robots 163 | 5 4 12 . 8 62 72 Core Hits 82 | 2 5 6 . 3 42 24 Critical Hits 1 | . . . . . 1 . Critical Kills . | . . . . . . . Critical Parts Destroyed 1 | . . . . . 1 . Melee Attacks . | . . . . . . . Impact . | . . . . . . . Slashing . | . . . . . . . Piercing . | . . . . . . . Sneak Attacks . | . . . . . . . Combat Hostiles . | . . . . . . . Follow-up Attacks . | . . . . . . . Damage Inflicted 2843 | 42 138 196 . 65 1204 1198 Guns 1335 | 42 67 158 . 65 795 208 Cannons 1239 | . . . . . 318 921 Explosions 239 | . 71 38 . . 74 56 Melee . | . . . . . . . Ramming 30 | . . . . . 17 13 Kinetic 1495 | 42 67 158 . 65 700 463 Thermal 780 | . . . . . 179 601 Explosive 183 | . 71 38 . . 74 . Electromagnetic 355 | . . . . . 234 121 Impact . | . . . . . . . Slashing . | . . . . . . . Piercing . | . . . . . . . Highest Corruption 3 | . . . . . 1 3 Average Corruption 2 | . . . . . 1 2 Corruption Purged . | . . . . . . . Effects 18 | . . . . . 1 17 Message Errors 4 | . . . . . . 4 Matter Fused 5 | . . . . . . 5 Heat Flow Errors 2 | . . . . . . 2 Data Loss (minor) 4 | . . . . . 1 3 Targeting Errors 3 | . . . . . . 3 Overload Shots . | . . . . . . . Overflow Damage 79 | . . . . . 69 10 Projectiles 21 | . . . . . 21 . Explosions 58 | . . . . . 48 10 Melee . | . . . . . . . Knockbacks 13 | . . . . . 4 9 Impact . | . . . . . . . Kinetic 13 | . . . . . 4 9 Secondary . | . . . . . . . Self-Inflicted Damage 169 | . . . . . 102 67 Shots 2 | . . . . . 1 1 Rammed 9 | . . . . . 8 1 Targets Rammed 13 | . . . . . 11 2 Kicked 1 | . . . . . . 1 Crushed 3 | . . . . . 3 . Highest Temperature 426 | 12 . 6 . . 426 202 Average Temperature 113 | 9 . 6 . . 140 58 Received Heat Transfer 821 | 18 21 180 . . 414 188 Effects 9 | . . . . . 9 . Shutdowns 1 | . . . . . 1 . Interference 7 | . . . . . 7 . Matter Decay 1 | . . . . . 1 . Siege Activations . | . . . . . . . Robots Corrupted . | . . . . . . . Combat Hostiles . | . . . . . . . Parts Fried 1 | . . . . . 1 . Impact Corruptions . | . . . . . . . Robots Melted . | . . . . . . . Combat Hostiles . | . . . . . . . Parts Melted . | . . . . . . . Heat Transferred 1197 | . . . . . 407 790 Parts Sabotaged . | . . . . . . . Parts Stolen . | . . . . . . . Parts Stripped . | . . . . . . . Power Chain Reactions 1 | . . . . . . 1 Missiles Intercepted . | . . . . . . . Alert | -11 -10 -10 -10 -9 -8 -7 ------- Run | Scr Mat Min Exi Min Mat Fac Peak Influence 266 | 20 88 34 . 50 266 120 Average Influence 84 | 3 48 30 . 38 119 64 Maximum Alert Level 1 | . . . . . 1 . Low Security (%) 98 | 100 100 100 . 100 75 100 Level 1 1 | . . . . . 24 . Level 2 . | . . . . . . . Level 3 . | . . . . . . . Level 4 . | . . . . . . . Level 5 . | . . . . . . . High Security . | . . . . . . . Max Security . | . . . . . . . Squads Dispatched 5 | . 1 . . . 3 1 Investigation 1 | . . . . . 1 . Extermination 1 | . . . . . . 1 Reinforcement 3 | . 1 . . . 2 . Assault . | . . . . . . . Garrison . | . . . . . . . Intercept . | . . . . . . . Construction Impeded . | . . . . . . . Haulers Reinforced . | . . . . . . . Stealth | -11 -10 -10 -10 -9 -8 -7 --------- Run | Scr Mat Min Exi Min Mat Fac Distress Signals 6 | . 1 . . . 4 1 Communications Jammed . | . . . . . . . Distress Signals . | . . . . . . . Times Spotted 57 | 1 4 3 . 3 33 13 Peak Tracking Total 6 | 1 3 2 . 3 6 4 Tactical Retreats 3 | . . . . . 2 1 Traps | -11 -10 -10 -10 -9 -8 -7 ------- Run | Scr Mat Min Exi Min Mat Fac Traps Triggered 1 | . . . . . 1 . Indirectly . | . . . . . . . Trap Hack Attempts . | . . . . . . . Triggered . | . . . . . . . Disarmed . | . . . . . . . Reprogrammed . | . . . . . . . Reused . | . . . . . . . Traps Extracted . | . . . . . . . Installed . | . . . . . . . Triggered . | . . . . . . . Machines | -11 -10 -10 -10 -9 -8 -7 ---------- Run | Scr Mat Min Exi Min Mat Fac Machines Disabled 7 | . . . . . 6 1 Max in Single Turn 2 | . . . . . 2 1 Machines Sabotaged . | . . . . . . . Garrisons Compromised . | . . . . . . . Overloaded Fab Kills . | . . . . . . . Fab Network Shutdowns . | . . . . . . . Hacking | -11 -10 -10 -10 -9 -8 -7 --------- Run | Scr Mat Min Exi Min Mat Fac Machines Accessed 8 | . . . 4 . 3 1 Terminals 2 | . . . . . 2 . Fabricators . | . . . . . . . Repair Stations 1 | . . . . . 1 . Recycling Units . | . . . . . . . Scanalyzers 1 | . . . . . . 1 Garrison Access . | . . . . . . . Total Hacks 43 | . . . 29 . 10 4 Successful 37 | . . . 29 . 5 3 Failed 6 | . . . . . 5 1 Catastrophic . | . . . . . . . Database Lockouts . | . . . . . . . Manual 3 | . . . 1 . 2 . Terminals 7 | . . . . . 7 . Fabricators . | . . . . . . . Repair Stations 3 | . . . . . 3 . Recycling Units . | . . . . . . . Scanalyzers 4 | . . . . . . 4 Garrison Access . | . . . . . . . Terminal Hacks 32 | . . . 29 . 3 . Record 32 | . . . 29 . 3 . Fabricator Hacks . | . . . . . . . Repair Station Hacks 2 | . . . . . 2 . Scan Component 1 | . . . . . 1 . Repair 1 | . . . . . 1 . Recycling Unit Hacks . | . . . . . . . Scanalyzer 3 | . . . . . . 3 Insert Component 1 | . . . . . . 1 Analyze 2 | . . . . . . 2 Garrison Access Hacks . | . . . . . . . Unauthorized Hacks . | . . . . . . . Terminals . | . . . . . . . Fabricators . | . . . . . . . Repair Stations . | . . . . . . . Recycling Units . | . . . . . . . Scanalyzers . | . . . . . . . Garrison Access . | . . . . . . . Data Cores Recovered . | . . . . . . . Used . | . . . . . . . Hacking Detections 3 | . . . . . 2 1 Full Trace Events . | . . . . . . . Feedback Events . | . . . . . . . Feedback Blocked . | . . . . . . . Robot Schematics Acquired . | . . . . . . . Robots Built . | . . . . . . . Matter . | . . . . . . . Time . | . . . . . . . Total Robot Build Rating . | . . . . . . . Part Schematics Acquired . | . . . . . . . Parts Built . | . . . . . . . Matter . | . . . . . . . Time . | . . . . . . . Total Part Build Rating . | . . . . . . . Parts Repaired 1 | . . . . . 1 . Time 38 | . . . . . 38 . Parts Recycled . | . . . . . . . Recycled Matter . | . . . . . . . Retrieved Matter . | . . . . . . . Retrieved Components . | . . . . . . . Parts Scanalyzed 1 | . . . . . . 1 Part Schematics Acquired . | . . . . . . . Parts Damaged . | . . . . . . . Bothacking | -11 -10 -10 -10 -9 -8 -7 ------------ Run | Scr Mat Min Exi Min Mat Fac Used RIF Installer . | . . . . . . . Robots Hacked . | . . . . . . . Non-combat . | . . . . . . . Combat . | . . . . . . . Robot Hacks Applied . | . . . . . . . Relay Couplers Released . | . . . . . . . Robots Rewired . | . . . . . . . Allies Hacked . | . . . . . . . Hacks Repelled . | . . . . . . . Allies | -11 -10 -10 -10 -9 -8 -7 -------- Run | Scr Mat Min Exi Min Mat Fac Total Allies . | . . . . . . . Largest Group . | . . . . . . . Highest-Rated Group . | . . . . . . . Highest-Rated Ally . | . . . . . . . Total Orders . | . . . . . . . Ally Attacks . | . . . . . . . Total Damage . | . . . . . . . Kills . | . . . . . . . Allies Corrupted . | . . . . . . . Allies Melted . | . . . . . . . Intel | -11 -10 -10 -10 -9 -8 -7 ------- Run | Scr Mat Min Exi Min Mat Fac Robot Analysis Total . | . . . . . . . Derelict Logs Recovered . | . . . . . . . Drone Launches . | . . . . . . . Drone Recoveries . | . . . . . . . Exploration | -11 -10 -10 -10 -9 -8 -7 ------------- Run | Scr Mat Min Exi Min Mat Fac Turns Passed 4009 | 102 111 286 360 88 1729 1333 Spaces Moved 2559 | 78 74 195 285 90 1200 637 Core 16 | 13 . . . . . 3 Treads 539 | . . . . . 430 109 Legs 1332 | 65 74 195 285 3 191 519 Wheels 6 | . . . . . . 6 Hover . | . . . . . . . Flight 666 | . . . . 87 579 . Fastest Speed 34 | 50 120 120 120 37 34 100 Average Speed 107 | 108 120 120 122 41 93 129 Slowest Speed 200 | 120 120 120 150 150 180 200 Overloaded Moves . | . . . . . . . Propulsion Burnouts . | . . . . . . . Robots Hopped 3 | . . . . 3 . . Cave-ins Triggered . | . . . . . . . Exploration Rate (%) 26 | 5 19 29 64 17 41 11 Regions Visited 6 Branch Regions 3 Pre-discovered Areas 1 | . . . 1 . . . Known Exits Taken . | . . . . . . . Unknown Exits Taken 6 | 1 1 1 1 1 1 . Scrap Searched 2 | . . 1 . 1 . . Spaces Dug . | . . . . . . . Terrain Destroyed 48 | . 11 2 . . 28 7 Melee . | . . . . . . . Projectile 3 | . . . . . . 3 AOE 45 | . 11 2 . . 28 4 Actions | -11 -10 -10 -10 -9 -8 -7 --------- Run | Scr Mat Min Exi Min Mat Fac Total 3630 | 88 86 228 296 130 1732 1070 Wait 707 | . . . . . 365 342 Move 2547 | 77 73 194 284 83 1199 637 Hop 3 | . . . . 3 . . Pick Up 46 | 2 1 1 2 9 21 10 Fast Attach 47 | 5 3 2 2 3 22 10 Attach 41 | 1 . 4 3 4 18 11 Detach 31 | . 2 1 4 7 11 6 Swap 2 | . . . . . . 2 Drop 69 | . . 6 1 12 38 12 Fire 124 | 3 7 20 . 9 47 38 Melee . | . . . . . . . Ram . | . . . . . . . Kick 4 | . . . . . 2 2 Crush 9 | . . . . . 9 . Escape Stasis . | . . . . . . . Rewire . | . . . . . . . Trap . | . . . . . . . Miscellaneous . | . . . . . . . Route ------- -11/Scrapyard -10/Materials -10/Mines -10/Exiles -9/Mines -8/Materials -7/Factory History --------- Turn | Location | Event 2 | -11/Scrapyard | Met Revision 17 75 | -11/Scrapyard | Discovered new exit (range 8) 103 | -11/Scrapyard | Entered Materials 127 | -10/Materials | Discovered new exit (range 11) 214 | -10/Materials | Entered Mines 224 | -10/Mines | Met a Derelict bent on vengeance 236 | -10/Mines | Assembled infested the area 311 | -10/Mines | Build established: Mutant 495 | -10/Mines | Deemed a non-threat by the Exiles lab entrance 495 | -10/Mines | Discovered new exit (range 5) 500 | -10/Mines | Entered Exiles 533 | -10/Exiles | Met 8R-AWN 555 | -10/Exiles | Met EX-HEX 589 | -10/Exiles | Met EX-BIN 611 | -10/Exiles | Aligned with FarCom system 612 | -10/Exiles | Given EX-Vault access code 666 | -10/Exiles | Opened EX-Vault 673 | -10/Exiles | Found Prototype Energy Cannon 686 | -10/Exiles | Identified YOLO Cannon 716 | -10/Exiles | Warned to stay clear of 0b10 Research branches 752 | -10/Exiles | Met EX-DEC 767 | -10/Exiles | Learned location of Zion (-7) 843 | -10/Exiles | Discovered new exit (range 12) 860 | -10/Exiles | Left Exiles lab with YOLO Cannon 860 | -10/Exiles | Entered Mines 945 | -9/Mines | Discovered new exit (range 10) 948 | -9/Mines | Entered Materials 948 | -8/Materials | Evolved 4 slots: Power x2, Propulsion x1, Weapon x1 1483 | -8/Materials | Repaired Lgt. Deuterium Engine 2206 | -8/Materials | Build established: Scavenger-Mutant 2639 | -8/Materials | Discovered new exit (range 16) 2677 | -8/Materials | Entered Factory 2677 | -7/Factory | Evolved 2 slots: Propulsion x1, Utility x1 3097 | -7/Factory | Build established: Skirmisher 3691 | -7/Factory | Build established: Scavenger-Skirmisher 4010 | -7/Factory | Self-destructed Last Messages --------------- 03957_ Acquired Com. Wheel. 03964_ Acquired Flak Gun. 03966_ Acquired Imp. Heat Sink. 03973_ System corrupted: Matter fused (-5). 03981_ G-47 Trooper destroyed. 03985_ Flak Gun severed. 03987_ L-41 Fighter knocked back. 03990_ Com. Wheel destroyed. 03990_ L-41 Fighter knocked back. 03991_ Lgt. EM Pulse Cannon destroyed. 03995_ L-41 Fighter knocked back. 03997_ System corrupted: Flak Cannon targeting data glitched. 03997_ L-41 Fighter knocked back. 03998_ System corrupted: Component data lost. 03999_ L-41 Fighter knocked back. 04004_ Flak Cannon destroyed. 04004_ Com. Wheel destroyed. 04007_ Acquired Flak Gun. 04009_ Hvy. Ion Cannon destroyed. 04010_ Flak Gun severed. Map ----- +----------------------------------------------------+ | ?????????????????????????????????????????????????? | | ?????????????????????????????????????????????????? | | ?????????????????????????????????????????????????? | | ?????????????????????????????????????????????????? | | ?????????????????????????????????????????????????? | | ???????????????????? ???????????????????????????? | | ???????????????????? ???????????????????????????? | | ???????????????????? ???????????????????????????? | | ???????????? ??????? ???????????????????????????? | | ???????????? ?????? ???????????????????????????? | | ???????????? ??####+#########???????Y???????????? | | ????????????? ?# #???????????????????? | | ????????????? # #???????????????????? | | ??????????? # #???????????????????? | | ??????????# # #???????????????????? | | ??????????+ + #???????????????????? | | ??????????# # #???????????????????? | | ??????????# # #???????????????????? | | ???######## # #???????????????????? | | ???# # #???????????????????? | | ???# # [ #???????????????????? | | ???# """ """ # #???????????????????? | | #### """ """ # = #???????????????????? | | # """ """ ####+#####+###???????????????????? | | # "" "" #?## ##! l% #???????????????????? | | # "" "" ### #%[@ #???????????????????? | | " # g! #???????????????????? | | " # """ ### ! # #???????????????????? | | " # """ #?############???????????????????? | | " + " " """ ##??########????????????????o????? | | " # "R" """ ##??# #?????????????????????? | | # " ##??# #?????????????????????? | | #### ##### "" #?????????????????????? | | + "F"" #?????????????????????? | | ########## # """" #?????????????????????? | | #????????# # #?????????????????????? | | #???????## #########????????????????????? | | #???????# # #????????????????????? | | ##############?# + #????????????????????? | | # #?# # #????????????????????? | | # """" """" #?##### "" #????????????????????? | | # """" """" #?????# S"" #????????????????????? | | # """" """" #?????# "" #????????????????????? | | + """ """" #?????########????????????????????? | | # #?????????????????????????????????? | | # """" """" #?????????????????????????????????? | | # """" """" #?????????????????????????????????? | | # """" """" #?????????????????????????????????? | | # """" """" #?????????????????????????????????? | | # #?????????????????????????????????? | +----------------------------------------------------+ Best States ------------- Heat Dissipation 48 Energy Generation 28 Energy Capacity 350 Matter Stores 350 Matter Capacity 350 Sight Range 16 Robot Scan Range 16 Terrain Scan Density 10 ECM Strength 1 Armor Coverage 150 Reclamation Efficiency 10 Evasion (%) 63 Targeting Accuracy 12 Recoil Reduction 3 Item Schematics ----------------- None Robot Schematics ------------------ None Fabricated ------------ Nothing Alien Tech Used ----------------- None Achievements -------------- I Spy I Survived The Infestation Librarian Made in Tau Ceti IV More Dakka Please Tourist Challenges ------------ None Game ------ Seed IntegratedPropulsionCore Manual? 0 Play Time 02:52:35 Cumulative 8.5 hours Start 2020.04.19 @ 21:02:29 End 2020.04.20 @ 13:42:17 Sessions 5 Manual Loads 0 Difficulty Rogue Special Mode None Game No. 3 Rogue 3 Adventurer 0 Explorer 0 Win Type - Total 0 Types 0/0/0/0/0/0/0 Lore% 6 Gallery% 7 Achievement% 5 Wizard Run 0 Options --------- ASCII 1 Keyboard 1 Movement Numpad Keybinds 0 Fullscreen 0 Font 14/Terminus Map View 76x50 Tactical HUD 1 Map Filters NONE Filters NONE Steam 1 RUN: 9a452d57-e91f-416c-bc68-46b25cf34c4f